Cogmind - Beta 14 @@@ ROGUE MODE // 2024.08.14 @ 17:42:38 Player: Olafz Result: Self-destructed Performance ------------- Evolutions (1) 500 Regions Visited (2) 400 Robots Destroyed (20) 100 Value Destroyed (488) 488 Prototype IDs (1) 20 Alien Tech Used (0) 0 Bonus (0) 0 TOTAL SCORE: 1508 Bonus ------- None Cogmind --------- Core Integrity 203/400 Matter 2/300 Energy 154/160 System Corruption 3% Temperature Cool (0) Movement Walking (190) Ox1 Location -9/Materials Parts ------- > --- POWER (1) -------- Light Nuclear Core > --- PROPULSION (2) --- Aluminum Leg Aluminum Leg > --- UTILITY (4) ------ Large Storage Unit Improved Targeting Computer > --- WEAPON (2) ------- (None) > --- INVENTORY (15) --- Ion Engine Large Storage Unit Peak State ------------ > --- POWER ------------ Cooled Ion Engine > --- PROPULSION ------- Aluminum Leg Aluminum Leg > --- UTILITY ---------- Large Storage Unit Improved Targeting Computer > --- WEAPON ----------- Assault Rifle > --- INVENTORY -------- Ion Engine Large Storage Unit Grenade Launcher [Rating: 9] Favorites ----------- Power Light Ion Engine Engine Light Ion Engine Power Core Light Nuclear Core Propulsion Aluminum Leg Leg Aluminum Leg Utility Large Storage Unit Storage Large Storage Unit Processor Improved Targeting Computer Weapon Light Assault Rifle Ballistic Gun Light Assault Rifle Launcher Grenade Launcher Build | -11 -10 -9 ------- Run | Yrd Mat Mat Slots Evolved 2 | . . 2 Power . | . . . Propulsion . | . . . Utility 2 | . . 2 Weapon . | . . . Parts Attached 20 | 6 5 9 Power 4 | 1 1 2 Engine 3 | 1 1 1 Core 1 | . . 1 Reactor . | . . . Propulsion 8 | 2 2 4 Treads . | . . . Leg 8 | 2 2 4 Wheel . | . . . Hover . | . . . Flight . | . . . Utility 3 | 1 1 1 Device . | . . . Storage 2 | 1 1 . Processor 1 | . . 1 Hackware . | . . . Protection . | . . . Artifact . | . . . Weapon 5 | 2 1 2 Energy Gun . | . . . Energy Cannon . | . . . Ballistic Gun 4 | 2 1 1 Ballistic Cannon . | . . . Launcher 1 | . . 1 Special Weapon . | . . . Impact Weapon . | . . . Slashing Weapon . | . . . Piercing Weapon . | . . . Special Melee Weapon . | . . . Unidentified Prototypes 1 | . . 1 Parts Lost 12 | . 5 7 Power 2 | . 1 1 Propulsion 6 | . 2 4 Utility . | . . . Weapon 4 | . 2 2 Highest Loss Streak 6 | . 5 6 To Critical Strikes 1 | . . 1 Average Slot Usage (%) 68 | . 79 54 Engine 11 | . 14 7 Leg 21 | . 24 17 Storage 12 | . 14 11 Processor 3 | . . 8 Ballistic Gun 18 | . 26 8 Peak Build Rating 9 | 6 7 9 Average Rating 6 | 4 5 7 On Entrance 3 | . 6 5 Naked Turns . | . . . Heaviest Build 30 | 10 30 30 Greatest Support 20 | 20 20 20 Greatest Overweight (x) 9 | . 8 9 Average Overweight (x) . | . . 1 Largest Inventory Capacity 15 | 8 15 15 Average Capacity 12 | 6 12 15 Most Carried 5 | 1 4 5 Average Carried 2 | . 2 3 Final Capacity 15 | 8 15 15 Final Carried 2 | 1 2 2 Class Distribution -------------------- 100% | Mutant Dominant Class ---------------- Mutant | -10/Materials Mutant | -9/Materials Resources | -11 -10 -9 ----------- Run | Yrd Mat Mat Matter Collected 352 | 160 125 67 Remotely . | . . . Salvage Created 573 | . 307 266 Parts 44 | . 27 17 Haulers Intercepted . | . . . Recyclers Shooed . | . . . Parts Field Recycled . | . . . Retrieved Matter . | . . . Parts Self-Destructed . | . . . Prevented . | . . . Kills | -11 -10 -9 ------- Run | Yrd Mat Mat Combat Hostiles Destroyed 17 | . 10 7 Guns 14 | . 10 4 AOE 3 | . . 3 Classes Destroyed 6 | . 4 2 Worker 2 | . 1 1 Watcher 1 | . 1 . Swarmer 6 | . 6 . Grunt 9 | . 4 5 Brawler 1 | . . 1 Sentry 1 | . . 1 Best Kill Streak 5 | . 5 4 Combat Bots Only 5 | . 5 3 Max Kills in Single Turn 1 | . 1 1 Gunslinging . | . . . Exploded 1 | . . 1 Melee . | . . . Uniques/NPCs Destroyed . | . . . Combat | -11 -10 -9 -------- Run | Yrd Mat Mat Hostile Shots Fired 182 | . 94 88 Missed 63 | . 28 35 Damage Taken 1484 | . 662 822 Core 364 | . 167 197 Absorbed by Shields . | . . . Core Remaining (%) 66 | 100 33 . Volleys Fired 97 | . 42 55 Largest 2 | . 2 1 Hottest 40 | . 40 30 Shots Fired 137 | . 82 55 Gun 130 | . 82 48 Cannon . | . . . Launcher 7 | . . 7 Special . | . . . Kinetic 130 | . 82 48 Thermal . | . . . Explosive 7 | . . 7 Electromagnetic . | . . . Robot Hit Streak 9 | . 7 9 Robot Miss Streak 4 | . 4 2 Penetration Max . | . . . Secondary Targets 2 | . 2 . Max Gunslinging Chain 1 | . 1 . Shots Hit Robots 85 | . 46 39 Core Hits 36 | . 19 17 Critical Kills . | . . . Critical Parts Destroyed . | . . . Critical Strikes . | . . . Melee Attacks . | . . . Impact . | . . . Slashing . | . . . Piercing . | . . . Sneak Attacks . | . . . Combat Hostiles . | . . . Follow-up Attacks . | . . . Damage Inflicted 1223 | . 444 779 Guns 866 | . 444 422 Cannons . | . . . Explosions 357 | . . 357 Melee . | . . . Ramming . | . . . Kinetic 866 | . 444 422 Thermal . | . . . Explosive 357 | . . 357 Electromagnetic . | . . . Impact . | . . . Slashing . | . . . Piercing . | . . . Highest Corruption 3 | . . 3 Average Corruption 3 | . . 3 Corruption Purged . | . . . Corruption Blocked . | . . . Effects 3 | . . 3 Parts Rejected 1 | . . 1 Data Loss (major) 2 | . . 2 Overload Shots . | . . . Overflow Damage . | . . . Projectiles . | . . . Explosions . | . . . Melee . | . . . Knockbacks . | . . . Impact . | . . . Kinetic . | . . . Secondary . | . . . Self-Inflicted Damage 116 | . . 116 Shots 3 | . . 3 Rammed . | . . . Targets Rammed . | . . . Kicked . | . . . Crushed . | . . . Highest Temperature 30 | . 30 . Average Temperature 13 | . 13 . Received Heat Transfer 546 | . 198 348 Siege Activations . | . . . Robots Corrupted . | . . . Combat Hostiles . | . . . Parts Fried . | . . . Impact Corruptions . | . . . Robots Melted . | . . . Combat Hostiles . | . . . Parts Melted . | . . . Heat Transferred . | . . . Parts Sabotaged . | . . . Parts Stolen . | . . . Parts Stripped . | . . . Power Chain Reactions . | . . . Alert | -11 -10 -9 ------- Run | Yrd Mat Mat Peak Influence 344 | . 272 344 Initial 114 | . . 114 Average 140 | . 134 174 Maximum Alert Level 1 | . 1 1 Low Security (%) 74 | 100 75 67 Level 1 25 | . 24 32 Level 2 . | . . . Level 3 . | . . . Level 4 . | . . . Level 5 . | . . . High Security . | . . . Max Security . | . . . Squads Dispatched 3 | . 3 . Investigation 1 | . 1 . Extermination . | . . . Reinforcement 2 | . 2 . Assault . | . . . Garrison . | . . . Intercept . | . . . Searches Triggered . | . . . Construction Impeded . | . . . Haulers Reinforced . | . . . Active Scanning Responses . | . . . Cargo Convoy Interrupts . | . . . Stealth | -11 -10 -9 --------- Run | Yrd Mat Mat Distress Signals 2 | . 1 1 Communications Jammed . | . . . Distress Signals . | . . . Times Spotted 30 | . 17 13 Peak Tracking Total 7 | . 7 5 Tactical Retreats 2 | . . 2 Traps | -11 -10 -9 ------- Run | Yrd Mat Mat Traps Triggered 2 | . 2 . Indirectly . | . . . Trap Hack Attempts . | . . . Triggered . | . . . Disarmed . | . . . Reprogrammed . | . . . Reused . | . . . Traps Extracted . | . . . Installed . | . . . Triggered . | . . . Machines | -11 -10 -9 ---------- Run | Yrd Mat Mat Machines Disabled 1 | . . 1 Max in Single Turn 1 | . . 1 Machines Repaired . | . . . Machines Dismantled . | . . . Machines Sabotaged . | . . . Overloaded Fab Kills . | . . . Hacking | -11 -10 -9 --------- Run | Yrd Mat Mat Machines Accessed 2 | . 1 1 Terminals 2 | . 1 1 Fabricators . | . . . Repair Stations . | . . . Recycling Units . | . . . Scanalyzers . | . . . Garrison Access . | . . . Total Hacks 5 | . 2 3 Successful 1 | . 1 . Failed 4 | . 1 3 Catastrophic . | . . . Database Lockouts . | . . . Manual 5 | . 2 3 Terminals 5 | . 2 3 Fabricators . | . . . Repair Stations . | . . . Recycling Units . | . . . Scanalyzers . | . . . Garrison Access . | . . . Terminal Hacks . | . . . Fabricator Hacks . | . . . Repair Station Hacks . | . . . Recycling Unit Hacks . | . . . Scanalyzer . | . . . Garrison Access Hacks . | . . . Unauthorized Hacks 1 | . 1 . Terminals 1 | . 1 . Botnet 1 | . 1 . Fabricators . | . . . Repair Stations . | . . . Recycling Units . | . . . Scanalyzers . | . . . Garrison Access . | . . . Data Cores Recovered . | . . . Used . | . . . Hacking Detections 1 | . . 1 Full Trace Events . | . . . Feedback Events . | . . . Feedback Blocked . | . . . Robot Schematics Acquired . | . . . Robots Built . | . . . Authchips . | . . . Time . | . . . Total Robot Build Rating . | . . . Part Schematics Acquired . | . . . Parts Built . | . . . Authchips . | . . . Time . | . . . Total Part Build Rating . | . . . Parts Repaired . | . . . Time . | . . . Parts Recycled . | . . . Recycled Matter . | . . . Retrieved Matter . | . . . Retrieved Components . | . . . Parts Scanalyzed . | . . . Part Schematics Acquired . | . . . Parts Damaged . | . . . Bothacking | -11 -10 -9 ------------ Run | Yrd Mat Mat Used RIF Installer . | . . . Robots Hacked . | . . . Non-combat . | . . . Combat . | . . . Robot Hacks Applied . | . . . Relay Couplers Released . | . . . Fabnet Peak Effective % . | . . . Robots Rewired . | . . . Allies Hacked . | . . . Hacks Repelled . | . . . Allies | -11 -10 -9 -------- Run | Yrd Mat Mat Total Allies . | . . . Largest Group . | . . . Highest-Rated Group . | . . . Highest-Rated Ally . | . . . Total Orders . | . . . Ally Attacks . | . . . Total Damage . | . . . Kills . | . . . Allies Corrupted . | . . . Allies Melted . | . . . Intel | -11 -10 -9 ------- Run | Yrd Mat Mat Robot Analysis Total . | . . . Derelict Logs Recovered . | . . . Drone Launches . | . . . Drone Recoveries . | . . . Exploration | -11 -10 -9 ------------- Run | Yrd Mat Mat Turns Passed 720 | 52 381 287 Spaces Moved 267 | 36 158 73 Core 18 | 2 6 10 Treads . | . . . Legs 249 | 34 152 63 Wheels . | . . . Hover . | . . . Flight . | . . . Fastest Speed 50 | 50 120 190 Average Speed 173 | 116 166 218 Slowest Speed 500 | 120 450 500 Overloaded Moves . | . . . Propulsion Burnouts . | . . . Robots Hopped . | . . . Cave-ins Triggered . | . . . Exploration Rate (%) 20 | 3 50 9 Regions Visited 2 Branch Regions . Pre-discovered Areas . | . . . Known Exits Taken . | . . . Unknown Exits Taken 2 | 1 1 . Scrap Searched . | . . . Spaces Dug . | . . . Terrain Destroyed 63 | . . 63 Melee . | . . . Projectile . | . . . AOE 63 | . . 63 Terrain Rammed . | . . . Walls Destroyed . | . . . Machines Disabled . | . . . Actions | -11 -10 -9 --------- Run | Yrd Mat Mat Total 395 | 43 209 143 Wait 1 | 1 . . Move 265 | 35 157 73 Hop . | . . . Pick Up 7 | 1 3 3 Fast Attach 16 | 6 3 7 Attach 4 | . 2 2 Detach 2 | . 1 1 Swap . | . . . Drop 3 | . 1 2 Fire 97 | . 42 55 Melee . | . . . Ram . | . . . Kick . | . . . Crush . | . . . Escape Stasis . | . . . Rewire . | . . . Trap . | . . . Miscellaneous . | . . . Route ------- -11/Scrapyard -10/Materials (discovered 2 exits: *Mat / [*Min]) -9/Materials History --------- Turn | Location | Event 9 | -11/Scrapyard | Discovered new exit (range 15) 53 | -11/Scrapyard | Entered Materials 241 | -10/Materials | Discovered new exit (range 15) 306 | -10/Materials | Build established: Mutant 369 | -10/Materials | Core integrity fell below 50% 386 | -10/Materials | Discovered new exit (range 15) 413 | -10/Materials | Lost 5 parts (1p2n2w) 434 | -10/Materials | Entered another Materials area 434 | -9/Materials | Evolved 2 slots: Utility x2 715 | -9/Materials | Lost 6 parts (1p4n1w) 721 | -9/Materials | Self-destructed Last Messages --------------- U-05 Engineer builds a Wall. U-05 Engineer lays Concrete. The unstable cave ceiling collapses. U-05 Engineer lays Concrete. Acquired Lgt. Nuclear Core. U-05 Engineer lays Concrete. U-05 Engineer builds a Wall. U-05 Engineer lays Concrete. System corrupted: Substantial component data lost. U-05 Engineer lays Concrete. Acquired Aluminum Leg. The unstable cave ceiling collapses. U-05 Engineer lays Concrete. U-05 Engineer builds a Wall. Grenade Launcher destroyed. The unstable cave ceiling collapses. Acquired Aluminum Leg. U-05 Engineer builds a Wall. The unstable cave ceiling collapses. U-05 Engineer builds a Wall. Map ----- +----------------------------------------------------+ | ?????????????????????????????????????????????????? | | ?????????????????????????????????????????????????? | | ?????????????????????????????????????????????????? | | ?????????????????????????????????????????????????? | | ?????????????????????????????????????????????????? | | ?????????????????????????????????????????????????? | | ?????????????????????????????????????????????????? | | ?????????????????????????????????????????????????? | | ?????????????????????????????????????????????????? | | ?????????????????????????????????????????????????? | | ???????????????????????#####???????###+###???????? | | ?????????????????????### ##?##### #####???? | | ???????????????????? ? ?? ????? | | ???????????????????? ??? ?????? | | ??????????????????###/## # ???? ??????? | | ?????????????????? g ##u ##?????# #???????? | | ??????????????????? # # #+#### # ########?? | | ?????????????????? """ *%! # """ # # """ #?? | | ?????????????????? """ # # # """ #?? | | ???????????????????""" # # + """ #?? | | ????????????????????? # # #?? | | ????????????????####### % = # #?? | | ????????????????# # # #?? | | ????????????????? """ # ########## | | ????????????????# """ % #?????# # | | ????????????????# """ @ ##?????# # | | ????????????????#= # = #?????# + | | ????????????????# *%# #?????# # | | ????????????## ###+##### ########## # "" | | ????????? ! # ** T" | | ????????? %/############## "" | | ?????????????#+#########+###????????????# | | ???????????????????????# ??????????????########## | | ???????????????????????# ???????????????????????? | | ???????????????????????# "??????????????????????? | | ???????????????????????# "??????????????????????? | | ???????????????????????# ""?????????????????????? | | ???????????????????????? ?????????????????????? | | ????????????????????????####?????????????????????? | | ?????????????????????????????????????????????????? | | ?????????????????????????????????????????????????? | | | | | | | | | | | | | | | | | | | +----------------------------------------------------+ Best States ------------- Heat Dissipation 28 Energy Generation 14 Energy Capacity 280 Matter Stores 204 Matter Capacity 300 Sight Range 16 Terrain Scan Density 10 Evasion (%) 55 Targeting Accuracy 6 Item Schematics ----------------- None Robot Schematics ------------------ None Fabricated ------------ Nothing Alien Tech Used ----------------- None Achievements -------------- None Challenges ------------ None Game ------ Seed SwarmLobotomyLeg Manual? 0 Play Time 00:09:09 Cumulative 203.1 hours Start 2024.08.14 @ 17:09:54 End 2024.08.14 @ 17:42:38 Sessions 1 Manual Loads 0 Difficulty Rogue Special Mode None Game No. 366 Rogue 364 Adventurer 2 Explorer 0 Win Type - Total 9 Types 8/0/0/1/0/0/0/0/0 Lore% 72 Gallery% 65 Achievement% 56 Wizard Run 0 Options --------- Layout 0 ASCII 0 Keyboard 1 Movement Numpad Keybinds 1 Fullscreen 2 Font 18/SmallcapsGlow Map View 76x50 Zoom Use 0% Tactical HUD 1 Map Filters NONE Filters NONE Steam 1 RUN: e191a9d4-beae-4d5d-8e1c-33335e51781b